[Event "TUR-ch Veterans 2019"]
[Site "Belek"]
[Date "2019.01.20"]
[Round "1.15"]
[White "Cabi, Mehmet"]
[Black "Muratoglu, Salih"]
[Result "0-1"]
[ECO "C24"]
[WhiteElo "1194"]
[BlackElo "1950"]
[Annotator "NA"]
[PlyCount "68"]
[EventDate "2019.01.20"]
[EventType "swiss"]
[EventCountry "TUR"]
[SourceTitle "playchess.com"]
[Source "ChessBase"]
[SourceQuality "1"]
[TimeControl "5400+30"]

1. e4 {[%emt 0:00:30]} d6 {[%emt 0:00:30]} 2. Bc4 {[%emt 0:00:30]} Nf6 {[%emt 0:00:30]} 3. d3 {[%emt 0:00:30]} e5 {[%emt 0:00:30]} 4. h3 {[%emt 0:00:30]} Be7 {[%emt 0:00:30]} 5. Nf3 {[%emt 0:00:30]} c6 {[%emt 0:00:30]} 6. Nc3 {[%emt 0:00:30]} Nbd7 {[%emt 0:00:30]} 7. Be3 {[%emt 0:00:30]} Qa5 {[%emt 0:00:30]} 8. O-O {[%emt 0:00:30]} d5 {[%emt 0:00:30]} 9. exd5 {[%emt 0:00:30]} cxd5 {[%emt 0:00:30]} 10. Bd2 {[%emt 0:00:30]} dxc4 {[%emt 0:00:30]} 11. dxc4 {[%emt 0:00:30]} O-O {[%emt 0:00:30]} 12. Nd5 {[%emt 0:00:30]} Qd8 {[%emt 0:00:30]} 13. Re1 {[%emt 0:00:30]} e4 {[%emt 0:00:30]} 14. Bc3 {[%emt 0:00:30]} Nxd5 {[%emt 0:00:30]} 15. cxd5 {[%emt 0:00:30]} exf3 {[%emt 0:00:30]} 16. Qxf3 {[%emt 0:00:30]} Bf6 {[%emt 0:00:30]} 17. Bb4 {[%emt 0:00:30]} Re8 {[%emt 0:00:30]} 18. c3 {[%emt 0:00:30]} a5 {[%emt 0:00:30]} 19. Ba3 {[%emt 0:00:30]} Ne5 {[%emt 0:00:30]} 20. Qe4 {[%emt 0:00:30]} Bd7 {[%emt 0:00:30]} 21. c4 {[%emt 0:00:30]} b5 {[%emt 0:00:30]} 22. cxb5 {[%emt 0:00:30]} Bxb5 {[%emt 0:00:30]} 23. Rad1 {[%emt 0:00:30]} Nd3 {[%emt 0:00:30]} 24. Qxe8+ {[%emt 0:00:30]} Bxe8 {[%emt 0:00:30]} 25. Rxd3 {[%emt 0:00:30]} Bb5 {[%emt 0:00:30]} 26. Rdd1 {[%emt 0:00:30]} h5 {[%emt 0:00:30]} 27. b3 {[%emt 0:00:30]} Rc8 {[%emt 0:00:30]} 28. Bc1 {[%emt 0:00:30]} Rc2 {[%emt 0:00:30]} 29. a4 {[%emt 0:00:30]} Bd7 {[%emt 0:00:30]} 30. Bf4 {[%emt 0:00:30]} Qb6 {[%emt 0:00:30]} 31. Be3 {[%emt 0:00:30]} Qxb3 {[%emt 0:00:30]} 32. d6 {[%emt 0:00:30]} Qxa4 {[%emt 0:00:30]} 33. Bb6 {[%emt 0:00:30]} Re2 {[%emt 0:00:30]} 34. Ra1 {[%emt 0:00:30]} Bxa1 {[%emt 0:00:30]} 0-1

[Event "TUR-ch Veterans 2019"]
[Site "Belek"]
[Date "2019.01.20"]
[Round "1.16"]
[White "Topaloglu, Hayati"]
[Black "Cifci, Alaettin"]
[Result "1-0"]
[ECO "C00"]
[WhiteElo "1740"]
[BlackElo "1294"]
[Annotator "NA"]
[PlyCount "61"]
[EventDate "2019.01.20"]
[EventType "swiss"]
[EventCountry "TUR"]
[SourceTitle "playchess.com"]
[Source "ChessBase"]
[SourceQuality "1"]
[TimeControl "5400+30"]

1. e4 {[%emt 0:00:30]} c5 {[%emt 0:00:30]} 2. f4 {[%emt 0:00:30]} e6 {[%emt 0:01:30]} 3. Nf3 {[%emt 0:00:30]} Nc6 {[%emt 0:00:30]} 4. c3 {[%emt 0:00:30]} d5 {[%emt 0:00:30]} 5. e5 {[%emt 0:00:30]} g6 {[%emt 0:02:30]} 6. d4 {[%emt 0:00:30]} cxd4 {[%emt 0:00:30]} 7. cxd4 {[%emt 0:00:30]} Bg7 {[%emt 0:00:30]} 8. Nc3 {[%emt 0:00:00]} a6 {[%emt 0:01:30]} 9. a3 {[%emt 0:01:00]} Nge7 {[%emt 0:00:30]} 10. Bd3 {[%emt 0:00:30]} O-O {[%emt 0:01:30]} 11. O-O {[%emt 0:00:30]} b5 {[%emt 0:01:30]} 12. b4 {[%emt 0:00:30]} a5 {[%emt 0:00:30]} 13. Nxb5 {[%emt 0:01:30]} axb4 {[%emt 0:01:30]} 14. Nd6 {[%emt 0:01:30]} bxa3 {[%emt 0:00:30]} 15. Rxa3 {[%emt 0:00:30]} Rxa3 {[%emt 0:01:30]} 16. Bxa3 {[%emt 0:00:30]} Qa5 {[%emt 0:00:30]} 17. Bc5 {[%emt 0:00:30]} Ba6 {[%emt 0:01:30]} 18. h4 {[%emt 0:03:30]} Nb4 {[%emt 0:00:30]} 19. Bxb4 {[%emt 0:02:30]} Qxb4 {[%emt 0:03:30]} 20. Bxa6 {[%emt 0:00:30]} Nf5 {[%emt 0:00:30]} 21. Nxf5 {[%emt 0:00:30]} gxf5 {[%emt 0:00:30]} 22. Kh2 {[%emt 0:00:30]} Kh8 {[%emt 0:00:30]} 23. Ng5 {[%emt 0:01:30]} h6 {[%emt 0:10:30]} 24. Nf3 {[%emt 0:02:30]} f6 {[%emt 0:00:30]} 25. Qe2 {[%emt 0:02:30]} Qe7 {[%emt 0:05:30]} 26. g3 {[%emt 0:01:30]} Qa7 {[%emt 0:01:30]} 27. Bd3 {[%emt 0:00:30]} fxe5 {[%emt 0:00:30]} 28. Nxe5 {[%emt 0:00:30]} Rb8 {[%emt 0:00:30]} 29. Nc6 {[%emt 0:00:30]} Qb7 {[%emt 0:06:30]} 30. Nxb8 {[%emt 0:00:30]} Qxb8 {[%emt 0:00:30]} 31. Qxe6 {[%emt 0:00:30]} 1-0

[Event "TUR-ch Veterans 2019"]
[Site "Belek"]
[Date "2019.01.20"]
[Round "1.17"]
[White "Sahin, Ali Haydar"]
[Black "Altin, Halis"]
[Result "1/2-1/2"]
[ECO "D02"]
[WhiteElo "1411"]
[BlackElo "1642"]
[Annotator "NA"]
[PlyCount "109"]
[EventDate "2019.01.20"]
[EventType "swiss"]
[EventCountry "TUR"]
[SourceTitle "playchess.com"]
[Source "ChessBase"]
[SourceQuality "1"]
[TimeControl "5400+30"]

1. d4 {[%emt 0:00:30]} Nf6 {[%emt 0:00:30]} 2. Bf4 {[%emt 0:00:30]} d5 {[%emt 0:00:30]} 3. e3 {[%emt 0:00:30]} e6 {[%emt 0:00:30]} 4. Nd2 {[%emt 0:21:30]} c5 {[%emt 0:33:30]} 5. c3 {[%emt 0:00:30]} Nc6 {[%emt 0:00:30]} 6. Ngf3 {[%emt 0:00:30]} Be7 {[%emt 0:00:30]} 7. Bd3 {[%emt 0:00:30]} Nh5 {[%emt 0:00:30]} 8. Bg3 {[%emt 0:00:30]} Nxg3 {[%emt 0:00:30]} 9. hxg3 {[%emt 0:00:30]} g6 {[%emt 0:00:30]} 10. Bb5 {[%emt 0:00:30]} a6 {[%emt 0:00:30]} 11. Bxc6+ {[%emt 0:00:30]} bxc6 {[%emt 0:00:30]} 12. Ne5 {[%emt 0:00:30]} Qc7 {[%emt 0:00:30]} 13. c4 {[%emt 0:00:30]} Bf6 {[%emt 0:00:30]} 14. Ndf3 {[%emt 0:00:30]} cxd4 {[%emt 0:00:30]} 15. exd4 {[%emt 0:00:30]} Bd7 {[%emt 0:00:30]} 16. cxd5 {[%emt 0:00:30]} Qa5+ {[%emt 0:00:30]} 17. Kf1 {[%emt 0:00:30]} Qxd5 {[%emt 0:00:30]} 18. Rc1 {[%emt 0:00:30]} O-O {[%emt 0:00:30]} 19. Qd2 {[%emt 0:00:30]} Bg7 {[%emt 0:00:30]} 20. Rc5 {[%emt 0:05:30]} Qd6 {[%emt 0:01:30]} 21. Qc3 {[%emt 0:00:30]} Rfc8 {[%emt 0:03:30]} 22. a4 {[%emt 0:04:30]} Rab8 {[%emt 0:04:30]} 23. a5 {[%emt 0:02:30]} Rb5 {[%emt 0:01:30]} 24. b4 {[%emt 0:02:30]} Rxc5 {[%emt 0:06:30]} 25. Qxc5 {[%emt 0:01:30]} Qxc5 {[%emt 0:01:30]} 26. dxc5 {[%emt 0:01:30]} Be8 {[%emt 0:02:30]} 27. Ke2 {[%emt 0:00:30]} Rd8 {[%emt 0:00:30]} 28. Rc1 {[%emt 0:04:30]} f6 {[%emt 0:05:30]} 29. Nc4 {[%emt 0:00:30]} g5 {[%emt 0:01:30]} 30. g4 {[%emt 0:00:30]} Bg6 {[%emt 0:02:30]} 31. Nd6 {[%emt 0:00:30]} Bf8 {[%emt 0:02:30]} 32. Rd1 {[%emt 0:00:30]} h5 {[%emt 0:01:30]} 33. Nh2 {[%emt 0:07:30]} Bxd6 {[%emt 0:02:30]} 34. cxd6 {[%emt 0:00:30]} Kf7 {[%emt 0:00:30]} 35. Ke3 {[%emt 0:00:30]} e5 {[%emt 0:01:30]} 36. g3 {[%emt 0:01:30]} Ke6 {[%emt 0:00:30]} 37. f4 {[%emt 0:00:30]} gxf4+ {[%emt 0:01:30]} 38. gxf4 {[%emt 0:00:00]} exf4+ {[%emt 0:00:30]} 39. Kxf4 {[%emt 0:00:00]} Rxd6 {[%emt 0:00:30]} 40. Rxd6+ {[%emt 0:02:30]} Kxd6 {[%emt 0:00:30]} 41. gxh5 {[%emt 0:00:30]} Bxh5 {[%emt 0:00:30]} 42. Ke4 {[%emt 0:02:30]} c5 {[%emt 0:00:30]} 43. bxc5+ {[%emt 0:00:30]} Kxc5 {[%emt 0:00:00]} 44. Kf5 {[%emt 0:01:30]} Be2 {[%emt 0:00:00]} 45. Kxf6 {[%emt 0:00:30]} Kb5 {[%emt 0:00:30]} 46. Ke5 {[%emt 0:00:30]} Kxa5 {[%emt 0:00:30]} 47. Kd4 {[%emt 0:00:30]} Kb4 {[%emt 0:00:30]} 48. Ke3 {[%emt 0:00:00]} Bh5 {[%emt 0:02:30]} 49. Kd2 {[%emt 0:00:00]} Kb3 {[%emt 0:00:30]} 50. Nf1 {[%emt 0:00:30]} Kb2 {[%emt 0:00:30]} 51. Ne3 {[%emt 0:00:30]} Kb1 {[%emt 0:03:45]} 52. Kc3 {[%emt 0:01:30]} Bf7 {[%emt 0:01:55]} 53. Kb4 {[%emt 0:00:30]} Be8 {[%emt 0:00:29]} 54. Ka5 {[%emt 0:00:00]} Bb5 {[%emt 0:00:13]} 55. Nd5 {[%emt 0:00:00]} 1/2-1/2

[Event "TUR-ch Veterans 2019"]
[Site "Belek"]
[Date "2019.01.20"]
[Round "1.18"]
[White "Bagci, Hikmet"]
[Black "Yilmaz, Huseyin"]
[Result "*"]
[ECO "C01"]
[WhiteElo "1548"]
[BlackElo "1321"]
[Annotator "NA"]
[PlyCount "22"]
[EventDate "2019.01.20"]
[EventType "swiss"]
[EventCountry "TUR"]
[SourceTitle "playchess.com"]
[Source "ChessBase"]
[SourceQuality "1"]
[TimeControl "5400+30"]

1. e4 {[%emt 0:00:30]} e6 {[%emt 0:00:30]} 2. d4 {[%emt 0:00:30]} d5 {[%emt 0:00:30]} 3. exd5 {[%emt 0:02:30]} exd5 {[%emt 0:00:00]} 4. Nf3 {[%emt 0:01:30]} Nc6 {[%emt 0:00:30]} 5. h3 {[%emt 0:00:30]} Bd6 {[%emt 0:00:00]} 6. Bd3 {[%emt 0:01:30]} Nge7 {[%emt 0:00:30]} 7. c3 {[%emt 0:01:30]} Bf5 {[%emt 0:00:30]} 8. O-O {[%emt 0:01:30]} Qd7 {[%emt 0:00:00]} 9. Bxf5 {[%emt 0:01:30]} Qxf5 {[%emt 0:00:30]} 10. Re1 {[%emt 0:03:30]} O-O-O {[%emt 0:00:30]} 11. Be3 {[%emt 0:04:30]} f6 {[%emt 0:02:30]} *

[Event "TUR-ch Veterans 2019"]
[Site "Belek"]
[Date "2019.01.20"]
[Round "1.18"]
[White "Bagci, Hikmet"]
[Black "Yilmaz, Huseyin"]
[Result "0-1"]
[ECO "B38"]
[WhiteElo "1548"]
[BlackElo "1321"]
[Annotator "NA"]
[PlyCount "126"]
[EventDate "2019.01.20"]
[EventType "swiss"]
[EventCountry "TUR"]
[SourceTitle "playchess.com"]
[Source "ChessBase"]
[SourceQuality "1"]
[TimeControl "5400+30"]

1. e4 {[%emt 0:00:30]} c5 {[%emt 0:00:30]} 2. Nf3 {[%emt 0:00:30]} Nc6 {[%emt 0:00:30]} 3. d4 {[%emt 0:00:30]} cxd4 {[%emt 0:00:30]} 4. Nxd4 {[%emt 0:00:30]} g6 {[%emt 0:00:30]} 5. c4 {[%emt 0:00:30]} Bg7 {[%emt 0:00:30]} 6. Be3 {[%emt 0:00:30]} e6 {[%emt 0:00:30]} 7. Nc3 {[%emt 0:00:30]} Nge7 {[%emt 0:00:30]} 8. Qd2 {[%emt 0:00:30]} O-O {[%emt 0:00:30]} 9. O-O-O {[%emt 0:00:30]} a6 {[%emt 0:00:30]} 10. Kb1 {[%emt 0:00:30]} d5 {[%emt 0:00:30]} 11. Nxc6 {[%emt 0:00:30]} bxc6 {[%emt 0:00:30]} 12. exd5 {[%emt 0:00:30]} cxd5 {[%emt 0:00:30]} 13. cxd5 {[%emt 0:00:30]} exd5 {[%emt 0:00:30]} 14. Nxd5 {[%emt 0:00:30]} Bf5+ {[%emt 0:00:30]} 15. Ka1 {[%emt 0:00:30]} Rb8 {[%emt 0:00:30]} 16. Nc3 {[%emt 0:00:30]} Qa5 {[%emt 0:00:30]} 17. Bd3 {[%emt 0:00:30]} Rfd8 {[%emt 0:00:30]} 18. Qc2 {[%emt 0:00:30]} Be6 {[%emt 0:00:30]} 19. a3 {[%emt 0:00:30]} Rdc8 {[%emt 0:00:30]} 20. Bd2 {[%emt 0:00:30]} Nd5 {[%emt 0:00:30]} 21. Qa4 {[%emt 0:00:30]} Qb6 {[%emt 0:00:30]} 22. Qc2 {[%emt 0:44:30]} Qc6 {[%emt 0:33:30]} 23. Be4 {[%emt 0:01:30]} Qc5 {[%emt 0:08:30]} 24. Bxd5 {[%emt 0:00:30]} Bxd5 {[%emt 0:00:00]} 25. Be3 {[%emt 0:00:30]} Qf8 {[%emt 0:08:00]} 26. Bd4 {[%emt 0:00:30]} Bb3 {[%emt 0:03:30]} 27. Qe2 {[%emt 0:04:30]} Bxd4 {[%emt 0:05:30]} 28. Rxd4 {[%emt 0:08:30]} Rxc3 {[%emt 0:00:30]} 29. Qxa6 {[%emt 0:00:30]} Rcc8 {[%emt 0:00:30]} 30. Re1 {[%emt 0:01:30]} Qc5 {[%emt 0:00:30]} 31. Qd3 {[%emt 0:00:30]} Be6 {[%emt 0:03:30]} 32. Qd2 {[%emt 0:03:30]} Qb6 {[%emt 0:00:30]} 33. Rd3 {[%emt 0:09:30]} Qc7 {[%emt 0:06:30]} 34. h3 {[%emt 0:01:16]} Qc4 {[%emt 0:00:30]} 35. b4 {[%emt 0:00:42]} Ra8 {[%emt 0:02:30]} 36. Rd1 {[%emt 0:02:23]} Qc6 {[%emt 0:02:30]} 37. f3 {[%emt 0:02:12]} Qa4 {[%emt 0:00:30]} 38. Qb2 {[%emt 0:02:17]} Bf5 {[%emt 0:01:30]} 39. R3d2 {[%emt 0:05:14]} Qxa3+ {[%emt 0:01:01]} 40. Qxa3 {[%emt 0:00:07]} Rxa3+ {[%emt 0:00:15]} 41. Kb2 {[%emt 0:00:10]} Raa8 {[%emt 0:00:43]} 42. g4 {[%emt 0:02:21]} Be6 {[%emt 0:00:07]} 43. Ra1 {[%emt 0:00:20]} Rxa1 {[%emt 0:00:27]} 44. Kxa1 {[%emt 0:00:05]} Ra8+ {[%emt 0:01:01]} 45. Kb1 {[%emt 0:00:57]} Ra3 {[%emt 0:00:23]} 46. b5 {[%emt 0:00:57]} Rxf3 {[%emt 0:02:48]} 47. b6 {[%emt 0:00:23]} Rb3+ {[%emt 0:02:18]} 48. Rb2 {[%emt 0:00:01]} Rxb2+ {[%emt 0:00:09]} 49. Kxb2 {[%emt 0:00:01]} Bd5 {[%emt 0:00:00]} 50. Kc3 {[%emt 0:00:04]} Kf8 {[%emt 0:00:44]} 51. Kd4 {[%emt 0:00:01]} Bb7 {[%emt 0:00:00]} 52. g5 {[%emt 0:00:07]} Ke7 {[%emt 0:00:02]} 53. Ke5 {[%emt 0:00:14]} Bc6 {[%emt 0:00:24]} 54. h4 {[%emt 0:00:23]} Bb7 {[%emt 0:00:08]} 55. Kf4 {[%emt 0:00:32]} Kd6 {[%emt 0:00:12]} 56. Kg3 {[%emt 0:00:54]} Kc5 {[%emt 0:00:39]} 57. h5 {[%emt 0:00:02]} gxh5 {[%emt 0:00:36]} 58. Kh4 {[%emt 0:00:04]} Kxb6 {[%emt 0:00:17]} 59. Kxh5 {[%emt 0:00:02]} Be4 {[%emt 0:00:00]} 60. Kh6 {[%emt 0:00:02]} Kc7 {[%emt 0:01:04]} 61. Kg7 {[%emt 0:00:03]} Bg6 {[%emt 0:00:00]} 62. Kh6 {[%emt 0:00:41]} Kd6 {[%emt 0:00:00]} 63. Kg7 {[%emt 0:00:31]} Ke5 {[%emt 0:00:09]} 0-1

[Event "TUR-ch Veterans 2019"]
[Site "Belek"]
[Date "2019.01.20"]
[Round "1.19"]
[White "Kara, Senal"]
[Black "Bapoglu, Ibrahim"]
[Result "0-1"]
[ECO "B06"]
[WhiteElo "1315"]
[BlackElo "1549"]
[Annotator "NA"]
[PlyCount "126"]
[EventDate "2019.01.20"]
[EventType "swiss"]
[EventCountry "TUR"]
[SourceTitle "playchess.com"]
[Source "ChessBase"]
[SourceQuality "1"]
[TimeControl "5400+30"]

1. e4 {[%emt 0:00:30]} g6 {[%emt 0:00:30]} 2. Nf3 {[%emt 0:00:30]} Bg7 {[%emt 0:00:30]} 3. d4 {[%emt 0:00:30]} d6 {[%emt 0:00:30]} 4. Bc4 {[%emt 0:00:30]} e6 {[%emt 0:00:30]} 5. Nc3 {[%emt 0:00:30]} Ne7 {[%emt 0:00:30]} 6. Be3 {[%emt 0:00:30]} c6 {[%emt 0:00:30]} 7. Ne2 {[%emt 0:00:30]} d5 {[%emt 0:00:30]} 8. Bd3 {[%emt 0:00:30]} dxe4 {[%emt 0:00:30]} 9. Bxe4 {[%emt 0:00:30]} Nf5 {[%emt 0:00:30]} 10. Qd2 {[%emt 0:00:30]} Nxe3 {[%emt 0:00:30]} 11. fxe3 {[%emt 0:00:30]} Nd7 {[%emt 0:20:30]} 12. O-O {[%emt 0:21:30]} O-O {[%emt 0:00:30]} 13. c4 {[%emt 0:00:30]} Nf6 {[%emt 0:00:30]} 14. Ng3 {[%emt 0:00:30]} Nxe4 {[%emt 0:00:30]} 15. Nxe4 {[%emt 0:00:30]} b6 {[%emt 0:00:00]} 16. Rad1 {[%emt 0:00:30]} Bb7 {[%emt 0:00:00]} 17. c5 {[%emt 0:00:30]} Qc7 {[%emt 0:00:30]} 18. b4 {[%emt 0:00:30]} b5 {[%emt 0:00:30]} 19. Nd6 {[%emt 0:00:30]} a5 {[%emt 0:00:30]} 20. a3 {[%emt 0:01:30]} axb4 {[%emt 0:00:30]} 21. axb4 {[%emt 0:00:30]} Ra4 {[%emt 0:00:30]} 22. Rf2 {[%emt 0:00:30]} f6 {[%emt 0:00:30]} 23. e4 {[%emt 0:00:30]} Ra7 {[%emt 0:00:30]} 24. e5 {[%emt 0:00:30]} Raa8 {[%emt 0:00:30]} 25. Rdf1 {[%emt 0:03:30]} fxe5 {[%emt 0:04:30]} 26. h4 {[%emt 0:00:30]} Rad8 {[%emt 0:01:30]} 27. dxe5 {[%emt 0:04:30]} Bc8 {[%emt 0:00:30]} 28. Qg5 {[%emt 0:02:30]} Rd7 {[%emt 0:02:30]} 29. Nd4 {[%emt 0:01:30]} Rdd8 {[%emt 0:08:30]} 30. h5 {[%emt 0:01:30]} Rxf2 {[%emt 0:02:30]} 31. Rxf2 {[%emt 0:00:30]} Rf8 {[%emt 0:00:30]} 32. Rxf8+ {[%emt 0:00:30]} Kxf8 {[%emt 0:00:30]} 33. Nxc8 {[%emt 0:00:30]} Qxc8 {[%emt 0:00:30]} 34. hxg6 {[%emt 0:01:30]} hxg6 {[%emt 0:04:30]} 35. Qxg6 {[%emt 0:02:30]} Bxe5 {[%emt 0:04:30]} 36. Nxe6+ {[%emt 0:00:30]} Ke7 {[%emt 0:01:30]} 37. Ng5 {[%emt 0:02:30]} Bd4+ {[%emt 0:00:30]} 38. Kf1 {[%emt 0:01:30]} Qf8+ {[%emt 0:01:30]} 39. Nf3 {[%emt 0:01:30]} Bf6 {[%emt 0:02:30]} 40. Ke2 {[%emt 0:01:30]} Kd8 {[%emt 0:00:30]} 41. Qd3+ {[%emt 0:00:30]} Kc7 {[%emt 0:01:30]} 42. Qe4 {[%emt 0:02:30]} Qf7 {[%emt 0:05:30]} 43. g4 {[%emt 0:01:30]} Qa2+ {[%emt 0:00:00]} 44. Ke3 {[%emt 0:00:30]} Qb3+ {[%emt 0:03:00]} 45. Kf4 {[%emt 0:00:30]} Bc3 {[%emt 0:04:30]} 46. g5 {[%emt 0:01:30]} Bxb4 {[%emt 0:10:30]} 47. g6 {[%emt 0:00:30]} Bxc5 {[%emt 0:00:30]} 48. Ne5 {[%emt 0:00:30]} Qe6 {[%emt 0:02:07]} 49. Qf5 {[%emt 0:13:30]} Be3+ {[%emt 0:03:14]} 50. Kg4 {[%emt 0:00:30]} Qxf5+ {[%emt 0:04:00]} 51. Kxf5 {[%emt 0:01:30]} Bh6 {[%emt 0:00:02]} 52. Nf7 {[%emt 0:00:30]} Bg7 {[%emt 0:00:20]} 53. Ng5 {[%emt 0:01:30]} b4 {[%emt 0:05:30]} 54. Ne6+ {[%emt 0:00:30]} Kb6 {[%emt 0:01:00]} 55. Nxg7 {[%emt 0:00:00]} b3 {[%emt 0:00:19]} 56. Ne6 {[%emt 0:01:00]} b2 {[%emt 0:00:08]} 57. g7 {[%emt 0:00:00]} b1=Q+ {[%emt 0:00:52]} 58. Kf6 {[%emt 0:00:00]} Qh7 {[%emt 0:02:15]} 59. Kf7 {[%emt 0:00:30]} Qf5+ {[%emt 0:00:32]} 60. Ke7 {[%emt 0:00:30]} Qg6 {[%emt 0:00:44]} 61. Kd6 {[%emt 0:05:30]} c5 {[%emt 0:01:10]} 62. Kd5 {[%emt 0:00:30]} c4 {[%emt 0:00:39]} 63. Kd4 {[%emt 0:01:30]} Qxe6 {[%emt 0:00:18]} 0-1

[Event "TUR-ch Veterans 2019"]
[Site "Belek"]
[Date "2019.01.20"]
[Round "1.20"]
[White "Buyukgokcesu, Tahir Sami"]
[Black "Erakman, Muhittin"]
[Result "1-0"]
[ECO "B40"]
[WhiteElo "1557"]
[BlackElo "1300"]
[Annotator "NA"]
[PlyCount "69"]
[EventDate "2019.01.20"]
[EventType "swiss"]
[EventCountry "TUR"]
[SourceTitle "playchess.com"]
[Source "ChessBase"]
[SourceQuality "1"]
[TimeControl "5400+30"]

1. e4 {[%emt 0:00:30]} e6 {[%emt 0:00:30]} 2. d3 {[%emt 0:00:30]} d5 {[%emt 0:00:30]} 3. Nd2 {[%emt 0:00:30]} c5 {[%emt 0:00:30]} 4. Ngf3 {[%emt 0:00:30]} Be7 {[%emt 0:00:30]} 5. g3 {[%emt 0:00:30]} Nf6 {[%emt 0:00:30]} 6. Bg2 {[%emt 0:00:30]} Nc6 {[%emt 0:00:30]} 7. c3 {[%emt 0:00:30]} Qc7 {[%emt 0:00:30]} 8. O-O {[%emt 0:00:30]} Bd7 {[%emt 0:00:30]} 9. Re1 {[%emt 0:00:30]} h6 {[%emt 0:00:30]} 10. e5 {[%emt 0:00:30]} Nh7 {[%emt 0:00:30]} 11. Nf1 {[%emt 0:00:30]} g5 {[%emt 0:00:30]} 12. Qe2 {[%emt 0:00:30]} g4 {[%emt 0:00:30]} 13. N3d2 {[%emt 0:00:30]} h5 {[%emt 0:00:30]} 14. f4 {[%emt 0:00:30]} gxf3 {[%emt 0:00:30]} 15. Nxf3 {[%emt 0:00:30]} O-O-O {[%emt 0:00:30]} 16. c4 {[%emt 0:00:30]} d4 {[%emt 0:00:30]} 17. Bf4 {[%emt 0:00:30]} Rdg8 {[%emt 0:25:30]} 18. N1d2 {[%emt 0:20:30]} h4 {[%emt 0:02:30]} 19. gxh4 {[%emt 0:01:30]} Qd8 {[%emt 0:00:30]} 20. Bg3 {[%emt 0:02:30]} Nf8 {[%emt 0:05:30]} 21. Ne4 {[%emt 0:00:30]} Rg7 {[%emt 0:03:30]} 22. Rf1 {[%emt 0:01:30]} Ng6 {[%emt 0:03:30]} 23. Neg5 {[%emt 0:03:30]} Bxg5 {[%emt 0:07:30]} 24. hxg5 {[%emt 0:03:30]} Rgh7 {[%emt 0:00:30]} 25. Rf2 {[%emt 0:00:30]} Nce7 {[%emt 0:01:30]} 26. a3 {[%emt 0:05:30]} Nf5 {[%emt 0:00:30]} 27. b4 {[%emt 0:03:30]} Ngh4 {[%emt 0:03:30]} 28. Nxh4 {[%emt 0:03:30]} Nxh4 {[%emt 0:00:30]} 29. Be4 {[%emt 0:03:30]} Rh5 {[%emt 0:03:30]} 30. Rxf7 {[%emt 0:05:30]} Rxg5 {[%emt 0:02:30]} 31. Bxb7+ {[%emt 0:08:30]} Kxb7 {[%emt 0:06:30]} 32. Qe4+ {[%emt 0:00:00]} Kb6 {[%emt 0:05:30]} 33. bxc5+ {[%emt 0:01:00]} Kxc5 {[%emt 0:00:30]} 34. Qb7 {[%emt 0:00:30]} Bc6 {[%emt 0:00:30]} 35. Qb4# {[%emt 0:03:30]} 1-0